[Event "12th Senioren-Cup Tegernsee 2024"]
[Site "Rottach-Egern"]
[Date "2024.04.07"]
[Round "2.7"]
[White "Hartlieb, Juergen"]
[Black "Belke, Frank"]
[Result "1/2-1/2"]
[ECO "A08"]
[WhiteElo "1977"]
[BlackElo "2163"]
[Annotator "RC"]
[PlyCount "95"]
[EventDate "2024.04.02"]
[EventType "swiss"]
[EventCountry "GER"]
[SourceTitle "playchess.com"]
[Source "ChessBase"]
[SourceQuality "1"]
[TimeControl "7800+30"]

1. e4 {[%emt 0:00:03]} e6 {[%emt 0:00:02]} 2. d3 {[%emt 0:00:33]} d5 {[%emt 0:00:02]} 3. Nd2 {[%emt 0:00:08]} c5 {[%emt 0:00:02]} 4. g3 {[%emt 0:00:32]} Bd6 {[%emt 0:00:04]} 5. Bg2 {[%emt 0:00:15]} Ne7 {[%emt 0:00:06]} 6. Ngf3 {[%emt 0:01:12]} Nbc6 {[%emt 0:00:05]} 7. O-O {[%emt 0:00:23]} O-O {[%emt 0:00:03]} 8. Re1 {[%emt 0:01:07]} f6 {[%emt 0:00:21]} 9. exd5 {[%emt 0:02:02]} exd5 {[%emt 0:00:02]} 10. d4 {[%emt 0:02:42]} c4 {[%emt 0:01:15]} 11. c3 {[%emt 0:04:06]} Bf5 {[%emt 0:02:23]} 12. b3 {[%emt 0:07:02]} b5 {[%emt 0:02:21]} 13. bxc4 {[%emt 0:13:15]} bxc4 {[%emt 0:00:43]} 14. Nh4 {[%emt 0:08:07]} Bd3 {[%emt 0:00:45]} 15. Nf1 {[%emt 0:07:52]} Qd7 {[%emt 0:05:28]} 16. Ne3 {[%emt 1:29:11]} g5 {[%emt 0:02:29]} 17. Nf3 {[%emt 0:00:00]} Bc7 {[%emt 0:11:27]} 18. Qa4 {[%emt 0:00:00]} Rfd8 {[%emt 0:04:20]} 19. Ba3 {[%emt 0:00:00]} Bd6 {[%emt 0:03:39]} 20. Bxd6 {[%emt 0:00:00]} Qxd6 {[%emt 0:00:16]} 21. Bf1 {[%emt 0:00:00]} Bg6 {[%emt 0:00:35]} 22. Bh3 {[%emt 0:00:00]} h5 {[%emt 0:06:16]} 23. Bg2 {[%emt 0:00:00]} Rab8 {[%emt 0:02:55]} 24. Rad1 {[%emt 0:00:00]} Kg7 {[%emt 0:03:33]} 25. Rd2 {[%emt 0:00:00]} Rb7 {[%emt 0:01:13]} 26. h4 {[%emt 0:00:00]} g4 {[%emt 0:00:14]} 27. Nh2 {[%emt 0:00:00]} Rdb8 {[%emt 0:01:49]} 28. Bf1 {[%emt 0:00:00]} Rb5 {[%emt 0:02:09]} 29. Ng2 {[%emt 0:00:00]} Ra5 {[%emt 0:08:08]} 30. Qd1 {[%emt 0:00:00]} Ra3 {[%emt 0:00:06]} 31. Nf4 {[%emt 0:00:00]} Rb1 {[%emt 0:13:12]} 32. Qe2 {[%emt 0:00:00]} Rxe1 {[%emt 0:00:12]} 33. Qxe1 {[%emt 0:00:00]} Rxc3 {[%emt 0:00:52]} 34. Bg2 {[%emt 0:00:00]} Bf7 {[%emt 0:04:12]} 35. Nf1 {[%emt 0:00:00]} Nf5 {[%emt 0:04:31]} 36. Rb2 {[%emt 0:00:00]} Ra3 {[%emt 0:02:07]} 37. Rb7 {[%emt 0:00:00]} Nd8 {[%emt 0:01:20]} 38. Rxf7+ {[%emt 0:01:09]} Nxf7 {[%emt 0:01:36]} 39. Bxd5 {[%emt 0:00:06]} Qe7 {[%emt 0:07:52]} 40. Qd2 {[%emt 0:00:55]} c3 {[%emt 0:04:17]} 41. Nxh5+ {[%emt 0:00:10]} Kf8 {[%emt 0:00:17]} 42. Qf4 {[%emt 0:00:39]} c2 {[%emt 0:07:25]} 43. Qb8+ {[%emt 0:01:42]} Nd8 {[%emt 0:02:12]} 44. Qc8 {[%emt 0:01:59]} Nxd4 {[%emt 0:01:40]} 45. Nf4 {[%emt 0:00:17]} Ke8 {[%emt 0:04:57]} 46. Qc4 {[%emt 0:03:12]} Qe5 {[%emt 0:03:10]} 47. Kg2 {[%emt 0:01:58]} Nf3 {[%emt 0:06:16]} 48. Qb5+ {[%emt 0:00:46]} 1/2-1/2

[Event "12th Senioren-Cup Tegernsee 2024"]
[Site "Rottach-Egern"]
[Date "2024.04.07"]
[Round "2.8"]
[White "Lindam, Ingo"]
[Black "Onasch, Gunnar"]
[Result "1-0"]
[ECO "E06"]
[WhiteElo "2160"]
[BlackElo "1980"]
[Annotator "RC"]
[PlyCount "59"]
[EventDate "2024.04.02"]
[EventType "swiss"]
[EventCountry "GER"]
[SourceTitle "playchess.com"]
[Source "ChessBase"]
[SourceQuality "1"]
[TimeControl "7800+30"]

1. d4 {[%emt 0:00:04]} d5 {[%emt 0:00:08]} 2. Nf3 {[%emt 0:00:08]} e6 {[%emt 0:00:14]} 3. c4 {[%emt 0:02:54]} Be7 {[%emt 0:00:19]} 4. g3 {[%emt 0:01:27]} Nf6 {[%emt 0:00:33]} 5. Bg2 {[%emt 0:00:03]} O-O {[%emt 0:01:41]} 6. O-O {[%emt 0:00:03]} b6 {[%emt 0:06:23]} 7. cxd5 {[%emt 0:00:59]} exd5 {[%emt 0:00:30]} 8. Ne5 {[%emt 0:06:44]} Be6 {[%emt 0:06:00]} 9. Nc3 {[%emt 0:07:59]} Qc8 {[%emt 0:01:31]} 10. Bg5 {[%emt 0:09:10]} c6 {[%emt 0:06:51]} 11. Rc1 {[%emt 0:06:25]} Qb7 {[%emt 0:03:34]} 12. Qc2 {[%emt 0:10:30]} h6 {[%emt 0:22:17]} 13. Bxf6 {[%emt 0:02:07]} Bxf6 {[%emt 0:01:45]} 14. f4 {[%emt 0:07:25]} Bxe5 {[%emt 0:04:47]} 15. dxe5 {[%emt 0:05:49]} f5 {[%emt 0:11:44]} 16. exf6 {[%emt 0:02:37]} Rxf6 {[%emt 0:01:14]} 17. e4 {[%emt 0:00:28]} Na6 {[%emt 0:09:30]} 18. f5 {[%emt 0:05:01]} d4 {[%emt 0:19:10]} 19. fxe6 {[%emt 0:06:22]} dxc3 {[%emt 0:09:58]} 20. Rxf6 {[%emt 0:02:05]} gxf6 {[%emt 0:00:03]} 21. Qxc3 {[%emt 0:01:13]} Qe7 {[%emt 0:00:34]} 22. Qxc6 {[%emt 0:01:54]} Rd8 {[%emt 0:01:07]} 23. Bh3 {[%emt 0:05:58]} Kg7 {[%emt 0:04:43]} 24. e5 {[%emt 0:09:41]} fxe5 {[%emt 0:03:07]} 25. Qe4 {[%emt 0:01:11]} Nc5 {[%emt 0:10:25]} 26. Qxe5+ {[%emt 0:01:10]} Kg8 {[%emt 0:00:02]} 27. Qf5 {[%emt 0:04:03]} Qg7 {[%emt 0:01:46]} 28. Rc4 {[%emt 0:05:44]} Rd1+ {[%emt 0:04:45]} 29. Bf1 {[%emt 0:00:29]} Rd4 {[%emt 0:01:22]} 30. Qf7+ {[%emt 0:00:21]} 1-0

[Event "12th Senioren-Cup Tegernsee 2024"]
[Site "Rottach-Egern"]
[Date "2024.04.07"]
[Round "2.9"]
[White "Nikolov, Jordan"]
[Black "Luciani, Carlo"]
[Result "0-1"]
[ECO "C54"]
[WhiteElo "1971"]
[BlackElo "2159"]
[Annotator "RC"]
[PlyCount "100"]
[EventDate "2024.04.02"]
[EventType "swiss"]
[EventCountry "GER"]
[SourceTitle "playchess.com"]
[Source "ChessBase"]
[SourceQuality "1"]
[TimeControl "7800+30"]

1. e4 {[%emt 0:00:04]} e5 {[%emt 0:00:09]} 2. Nf3 {[%emt 0:00:07]} Nc6 {[%emt 0:00:09]} 3. Bc4 {[%emt 0:00:11]} Bc5 {[%emt 0:00:09]} 4. c3 {[%emt 0:00:56]} Nf6 {[%emt 0:00:13]} 5. d3 {[%emt 0:00:14]} a6 {[%emt 0:00:21]} 6. O-O {[%emt 0:01:43]} Ba7 {[%emt 0:02:39]} 7. Bb3 {[%emt 0:03:03]} d6 {[%emt 0:01:11]} 8. Nbd2 {[%emt 0:02:18]} h6 {[%emt 0:01:33]} 9. h3 {[%emt 0:04:20]} g5 {[%emt 0:02:20]} 10. Nh2 {[%emt 0:15:36]} Bd7 {[%emt 0:16:29]} 11. Nc4 {[%emt 0:06:21]} Qe7 {[%emt 0:02:47]} 12. Ne3 {[%emt 0:04:25]} O-O-O {[%emt 0:05:06]} 13. Qf3 {[%emt 0:07:10]} Rdf8 {[%emt 0:05:21]} 14. Nf5 {[%emt 0:08:52]} Bxf5 {[%emt 0:01:00]} 15. Qxf5+ {[%emt 0:00:17]} Kb8 {[%emt 0:00:11]} 16. Bd1 {[%emt 0:07:34]} Ne8 {[%emt 0:04:41]} 17. Ng4 {[%emt 0:16:43]} Qd8 {[%emt 0:04:55]} 18. Be3 {[%emt 0:04:50]} Ne7 {[%emt 0:01:57]} 19. Bxa7+ {[%emt 0:04:14]} Kxa7 {[%emt 0:00:15]} 20. Qf3 {[%emt 0:00:12]} f5 {[%emt 0:00:50]} 21. exf5 {[%emt 0:02:04]} Nxf5 {[%emt 0:01:43]} 22. Qe4 {[%emt 0:03:31]} h5 {[%emt 0:03:15]} 23. Ne3 {[%emt 0:01:45]} Nh4 {[%emt 0:02:10]} 24. Nd5 {[%emt 0:02:28]} Kb8 {[%emt 0:03:41]} 25. d4 {[%emt 0:20:15]} c6 {[%emt 0:02:55]} 26. Nb4 {[%emt 0:03:15]} Nf6 {[%emt 0:02:06]} 27. Qe3 {[%emt 0:00:14]} e4 {[%emt 0:01:15]} 28. g3 {[%emt 0:03:43]} Nf5 {[%emt 0:04:44]} 29. Qxg5 {[%emt 0:00:58]} Qd7 {[%emt 0:01:40]} 30. Qf4 {[%emt 0:01:27]} a5 {[%emt 0:00:34]} 31. Nc2 {[%emt 0:00:20]} Nd5 {[%emt 0:01:24]} 32. Qxe4 {[%emt 0:01:08]} Rhg8 {[%emt 0:04:46]} 33. Bf3 {[%emt 0:04:24]} Re8 {[%emt 0:02:33]} 34. Qd3 {[%emt 0:01:40]} Nf4 {[%emt 0:00:14]} 35. Qd2 {[%emt 0:00:34]} Nxh3+ {[%emt 0:03:02]} 36. Kh2 {[%emt 0:00:42]} Ng5 {[%emt 0:00:27]} 37. Bg2 {[%emt 0:00:21]} h4 {[%emt 0:00:18]} 38. g4 {[%emt 0:05:11]} h3 {[%emt 0:00:57]} 39. Bh1 {[%emt 0:01:41]} Nh4 {[%emt 0:00:37]} 40. f3 {[%emt 0:01:23]} Ref8 {[%emt 0:01:03]} 41. Qe3 {[%emt 0:00:39]} Re8 {[%emt 0:00:43]} 42. Qd2 {[%emt 0:00:32]} Qf7 {[%emt 0:01:04]} 43. f4 {[%emt 0:00:49]} Ne4 {[%emt 0:01:10]} 44. Bxe4 {[%emt 0:00:56]} Rxe4 {[%emt 0:00:10]} 45. Rae1 {[%emt 0:00:28]} Rxe1 {[%emt 0:01:26]} 46. Nxe1 {[%emt 0:01:35]} Rxg4 {[%emt 0:00:32]} 47. Qe3 {[%emt 0:00:22]} Nf5 {[%emt 0:01:11]} 48. Qf3 {[%emt 0:00:46]} Rg3 {[%emt 0:00:40]} 49. Qe4 {[%emt 0:00:35]} Re3 {[%emt 0:00:23]} 50. Qc2 {[%emt 0:00:27]} Qe6 {[%emt 0:00:40]} 0-1

[Event "12th Senioren-Cup Tegernsee 2024"]
[Site "Rottach-Egern"]
[Date "2024.04.07"]
[Round "2.10"]
[White "Astengo, Corrado"]
[Black "Schatz, Christian"]
[Result "1/2-1/2"]
[ECO "B05"]
[WhiteElo "1968"]
[BlackElo "2158"]
[Annotator "RC"]
[PlyCount "44"]
[EventDate "2024.04.02"]
[EventType "swiss"]
[EventCountry "GER"]
[SourceTitle "playchess.com"]
[Source "ChessBase"]
[SourceQuality "1"]
[TimeControl "7800+30"]

1. e4 {[%emt 0:00:30]} Nf6 {[%emt 0:00:30]} 2. e5 {[%emt 0:00:07]} Nd5 {[%emt 0:00:04]} 3. d4 {[%emt 0:00:11]} d6 {[%emt 0:00:07]} 4. Nf3 {[%emt 0:00:16]} Bg4 {[%emt 0:00:22]} 5. Be2 {[%emt 0:00:11]} e6 {[%emt 0:00:21]} 6. c4 {[%emt 0:00:25]} Nb6 {[%emt 0:00:18]} 7. exd6 {[%emt 0:00:25]} cxd6 {[%emt 0:00:12]} 8. O-O {[%emt 0:01:02]} Be7 {[%emt 0:00:11]} 9. Nc3 {[%emt 0:00:58]} O-O {[%emt 0:00:15]} 10. Be3 {[%emt 0:01:44]} d5 {[%emt 0:01:34]} 11. c5 {[%emt 0:00:28]} Nc8 {[%emt 0:00:50]} 12. b4 {[%emt 0:05:20]} a6 {[%emt 0:03:58]} 13. Ne5 {[%emt 0:06:50]} Bxe2 {[%emt 0:00:54]} 14. Qxe2 {[%emt 0:00:03]} Bf6 {[%emt 0:03:31]} 15. Bf4 {[%emt 0:03:30]} Ne7 {[%emt 0:04:10]} 16. Rab1 {[%emt 0:04:40]} Nbc6 {[%emt 0:02:06]} 17. Rfd1 {[%emt 0:00:17]} Nf5 {[%emt 0:07:18]} 18. Nxc6 {[%emt 0:03:28]} bxc6 {[%emt 0:00:08]} 19. Be5 {[%emt 0:00:06]} Bxe5 {[%emt 0:04:40]} 20. Qxe5 {[%emt 0:00:25]} Qb8 {[%emt 0:01:31]} 21. Qxb8 {[%emt 0:00:50]} Rfxb8 {[%emt 0:04:19]} 22. Na4 {[%emt 0:00:40]} Ra7 {[%emt 0:04:14]} 1/2-1/2

[Event "12th Senioren-Cup Tegernsee 2024"]
[Site "Rottach-Egern"]
[Date "2024.04.08"]
[Round "3.1"]
[White "Schneider-Zinner, Harald"]
[Black "Mertens, Klaus"]
[Result "1-0"]
[ECO "E21"]
[WhiteElo "2335"]
[BlackElo "2093"]
[Annotator "RC"]
[PlyCount "83"]
[EventDate "2024.04.02"]
[EventType "swiss"]
[EventCountry "GER"]
[SourceTitle "playchess.com"]
[Source "ChessBase"]
[SourceQuality "1"]
[TimeControl "7800+30"]

1. d4 {[%emt 0:00:14]} Nf6 {[%emt 0:00:03]} 2. c4 {[%emt 0:00:18]} e6 {[%emt 0:00:08]} 3. Nc3 {[%emt 0:00:39]} Bb4 {[%emt 0:00:22]} 4. Nf3 {[%emt 0:00:50]} b6 {[%emt 0:00:47]} 5. Qb3 {[%emt 0:00:36]} a5 {[%emt 0:03:26]} 6. g3 {[%emt 0:00:35]} Bb7 {[%emt 0:01:04]} 7. Bg2 {[%emt 0:00:08]} O-O {[%emt 0:00:19]} 8. O-O {[%emt 0:00:23]} d5 {[%emt 0:09:47]} 9. cxd5 {[%emt 0:07:49]} exd5 {[%emt 0:00:46]} 10. Bg5 {[%emt 0:01:59]} c6 {[%emt 0:02:54]} 11. Ne5 {[%emt 0:02:17]} Qd6 {[%emt 0:07:16]} 12. Rac1 {[%emt 0:17:56]} Nfd7 {[%emt 0:06:11]} 13. Nd3 {[%emt 0:08:40]} Re8 {[%emt 0:14:43]} 14. a3 {[%emt 0:04:04]} Bxc3 {[%emt 0:01:18]} 15. Qxc3 {[%emt 1:31:32]} Na6 16. Bf4 Qe6 17. Be3 {[%emt 0:00:00]} Nc7 {[%emt 1:29:56]} 18. a4 Na6 {[%emt 0:00:00]} 19. Rfe1 {[%emt 0:02:00]} Rac8 20. Rcd1 Re7 21. b3 {[%emt 0:00:00]} Nf8 {[%emt 0:00:00]} 22. Bg5 {[%emt 0:00:00]} f6 {[%emt 0:00:00]} 23. Bc1 {[%emt 0:02:00]} Qf5 24. Ba3 Ree8 25. Nf4 g5 26. Bh3 g4 27. Bg2 Ng6 28. e3 Nxf4 29. exf4 Kf7 30. Bf1 Qd7 31. Bd3 Rxe1+ 32. Rxe1 Re8 33. Bxh7 Bc8 34. Bd3 {[%emt 0:00:00]} Rxe1+ {[%emt 0:00:00]} 35. Qxe1 {[%emt 0:00:00]} Nc7 {[%emt 0:09:00]} 36. f5 {[%emt 0:00:00]} Ne8 {[%emt 0:00:00]} 37. Qe2 {[%emt 0:00:00]} Ng7 {[%emt 0:00:00]} 38. Qxg4 {[%emt 0:00:00]} Nxf5 {[%emt 0:00:00]} 39. Qh5+ {[%emt 0:00:00]} Kg7 {[%emt 0:00:00]} 40. g4 {[%emt 0:00:00]} Ne7 {[%emt 0:00:00]} 41. Qh7+ {[%emt 0:00:00]} Kf8 {[%emt 0:00:00]} 42. Bf5 {[%emt 0:00:00]} 1-0

[Event "12th Senioren-Cup Tegernsee 2024"]
[Site "Rottach-Egern"]
[Date "2024.04.08"]
[Round "3.2"]
[White "Jahn, Peter"]
[Black "Heinbuch, Detlef Ulrich"]
[Result "1/2-1/2"]
[ECO "A44"]
[WhiteElo "2068"]
[BlackElo "2273"]
[Annotator "RC"]
[PlyCount "30"]
[EventDate "2024.04.02"]
[EventType "swiss"]
[EventCountry "GER"]
[SourceTitle "playchess.com"]
[Source "ChessBase"]
[SourceQuality "1"]
[TimeControl "7800+30"]

1. d4 {[%emt 0:00:06]} c5 {[%emt 0:00:13]} 2. d5 {[%emt 0:00:21]} e5 {[%emt 0:01:17]} 3. Nc3 {[%emt 0:00:42]} d6 {[%emt 0:00:12]} 4. e4 {[%emt 0:00:20]} a6 {[%emt 0:01:41]} 5. a4 {[%emt 0:00:24]} b6 {[%emt 0:00:41]} 6. Nf3 {[%emt 0:01:10]} Bg4 {[%emt 0:01:36]} 7. Be2 {[%emt 0:01:12]} Bxf3 {[%emt 0:00:47]} 8. Bxf3 {[%emt 0:00:47]} Be7 {[%emt 0:02:47]} 9. O-O {[%emt 0:02:24]} Nf6 {[%emt 0:02:24]} 10. Be3 {[%emt 0:02:36]} O-O {[%emt 0:00:25]} 11. Qe2 {[%emt 0:01:44]} Ne8 {[%emt 0:02:18]} 12. Bg4 {[%emt 0:04:37]} g6 {[%emt 0:28:21]} 13. Bh3 {[%emt 0:12:47]} Ng7 {[%emt 0:16:16]} 14. g3 {[%emt 0:14:14]} f5 {[%emt 0:15:33]} 15. f4 {[%emt 0:20:13]} Nd7 {[%emt 1:03:29]} 1/2-1/2

[Event "12th Senioren-Cup Tegernsee 2024"]
[Site "Rottach-Egern"]
[Date "2024.04.08"]
[Round "3.3"]
[White "Cordts, Ingo"]
[Black "Kolthoff, Siegmund"]
[Result "1/2-1/2"]
[ECO "E08"]
[WhiteElo "2225"]
[BlackElo "2083"]
[Annotator "RC"]
[PlyCount "37"]
[EventDate "2024.04.02"]
[EventType "swiss"]
[EventCountry "GER"]
[SourceTitle "playchess.com"]
[Source "ChessBase"]
[SourceQuality "1"]
[TimeControl "7800+30"]

1. d4 {[%emt 0:00:06]} d5 {[%emt 0:01:00]} 2. c4 {[%emt 0:00:27]} e6 {[%emt 0:00:22]} 3. Nf3 {[%emt 0:04:23]} Nf6 {[%emt 0:00:57]} 4. g3 {[%emt 0:00:20]} Bb4+ {[%emt 0:00:33]} 5. Bd2 {[%emt 0:01:10]} Be7 {[%emt 0:00:09]} 6. Bg2 {[%emt 0:00:19]} O-O {[%emt 0:00:16]} 7. O-O {[%emt 0:00:33]} c6 {[%emt 0:00:20]} 8. Qc2 {[%emt 0:01:08]} Nbd7 {[%emt 0:01:00]} 9. Bf4 {[%emt 0:00:47]} Nh5 {[%emt 0:04:27]} 10. Bc1 {[%emt 0:00:24]} Nhf6 {[%emt 0:00:56]} 11. Bf4 {[%emt 0:06:30]} Nh5 {[%emt 0:01:20]} 12. Bc1 {[%emt 0:00:06]} Nhf6 {[%emt 0:00:07]} 13. b3 {[%emt 0:00:27]} b6 {[%emt 0:00:09]} 14. Nc3 {[%emt 0:03:36]} Ba6 {[%emt 0:02:22]} 15. Rd1 {[%emt 0:06:03]} Rc8 {[%emt 0:02:20]} 16. e4 {[%emt 0:19:39]} dxc4 {[%emt 0:05:20]} 17. Bf4 {[%emt 0:08:25]} Bb4 {[%emt 0:10:27]} 18. Nd2 {[%emt 0:11:37]} Qe7 {[%emt 0:12:21]} 19. Bh3 {[%emt 0:15:51]} 1/2-1/2

[Event "12th Senioren-Cup Tegernsee 2024"]
[Site "Rottach-Egern"]
[Date "2024.04.08"]
[Round "3.4"]
[White "Mueller, Matthias-Michael"]
[Black "Vatter, Hans-Joachim"]
[Result "1/2-1/2"]
[ECO "A46"]
[WhiteElo "2307"]
[BlackElo "2211"]
[Annotator "RC"]
[PlyCount "28"]
[EventDate "2024.04.02"]
[EventType "swiss"]
[EventCountry "GER"]
[SourceTitle "playchess.com"]
[Source "ChessBase"]
[SourceQuality "1"]
[TimeControl "7800+30"]

1. d4 {[%emt 0:00:02]} Nf6 {[%emt 2:11:00]} 2. Nf3 {[%emt 2:11:28]} e6 {[%emt 0:00:00]} 3. Bf4 {[%emt 0:00:00]} c5 {[%emt 0:00:00]} 4. e3 {[%emt 0:00:00]} Qb6 {[%emt 0:00:00]} 5. Qc1 {[%emt 0:00:00]} Nc6 {[%emt 0:00:00]} 6. c3 {[%emt 0:00:00]} Nh5 {[%emt 0:00:00]} 7. Bg3 {[%emt 0:00:00]} Nxg3 {[%emt 0:00:00]} 8. hxg3 {[%emt 0:00:00]} d5 {[%emt 0:00:00]} 9. Bd3 {[%emt 0:00:00]} Bd7 {[%emt 0:00:00]} 10. Nbd2 {[%emt 0:00:00]} h6 {[%emt 0:00:00]} 11. O-O {[%emt 0:00:00]} Rc8 {[%emt 0:00:00]} 12. Qb1 {[%emt 0:00:00]} cxd4 {[%emt 0:00:00]} 13. exd4 {[%emt 0:00:00]} Be7 {[%emt 0:00:00]} 14. Re1 {[%emt 0:00:00]} O-O {[%emt 0:00:00]} 1/2-1/2

[Event "12th Senioren-Cup Tegernsee 2024"]
[Site "Rottach-Egern"]
[Date "2024.04.08"]
[Round "3.6"]
[White "Zschunke, Werner"]
[Black "Lindam, Ingo"]
[Result "0-1"]
[ECO "E68"]
[WhiteElo "1966"]
[BlackElo "2160"]
[Annotator "RC"]
[PlyCount "62"]
[EventDate "2024.04.02"]
[EventType "swiss"]
[EventCountry "GER"]
[SourceTitle "playchess.com"]
[Source "ChessBase"]
[SourceQuality "1"]
[TimeControl "7800+30"]

1. c4 {[%emt 0:00:07]} Nf6 {[%emt 0:00:38]} 2. Nf3 {[%emt 0:00:13]} g6 {[%emt 0:00:11]} 3. Nc3 {[%emt 0:00:20]} Bg7 {[%emt 0:00:11]} 4. g3 {[%emt 0:00:43]} d6 {[%emt 0:00:14]} 5. Bg2 {[%emt 0:00:16]} e5 {[%emt 0:00:07]} 6. O-O {[%emt 0:01:46]} O-O {[%emt 0:00:29]} 7. d4 {[%emt 0:01:28]} Nbd7 {[%emt 0:00:55]} 8. dxe5 {[%emt 0:00:53]} dxe5 {[%emt 0:01:15]} 9. e4 {[%emt 0:01:52]} c6 {[%emt 0:09:22]} 10. Qc2 {[%emt 0:06:17]} Qe7 {[%emt 0:04:38]} 11. h3 {[%emt 0:04:31]} Nh5 {[%emt 0:12:02]} 12. Bg5 {[%emt 0:16:45]} f6 {[%emt 0:10:33]} 13. Be3 {[%emt 0:00:44]} Nc5 {[%emt 0:08:10]} 14. g4 {[%emt 0:11:37]} Nf4 {[%emt 0:00:42]} 15. Bxf4 {[%emt 0:00:07]} exf4 {[%emt 0:00:19]} 16. Rad1 {[%emt 0:05:27]} a5 {[%emt 0:15:58]} 17. Nd4 {[%emt 0:04:16]} Bd7 {[%emt 0:13:11]} 18. Nce2 {[%emt 0:01:59]} Bh6 {[%emt 0:01:07]} 19. a3 {[%emt 0:03:55]} a4 {[%emt 0:01:13]} 20. b4 {[%emt 0:00:19]} axb3 {[%emt 0:02:10]} 21. Nxb3 {[%emt 0:00:06]} Be6 {[%emt 0:06:25]} 22. Ned4 {[%emt 0:03:21]} Bf7 {[%emt 0:00:40]} 23. Ra1 {[%emt 0:02:58]} Rfd8 {[%emt 0:03:00]} 24. Rfd1 {[%emt 0:11:09]} Bg7 {[%emt 0:02:33]} 25. Ra2 {[%emt 0:15:13]} Rd7 {[%emt 0:05:00]} 26. Kh2 {[%emt 0:05:02]} Rad8 {[%emt 0:00:46]} 27. Bf3 {[%emt 0:05:29]} f5 {[%emt 0:08:45]} 28. Nxc5 {[%emt 0:10:08]} Qxc5 {[%emt 0:00:28]} 29. Nb3 {[%emt 0:00:10]} Qxc4 {[%emt 0:00:53]} 30. Rb1 {[%emt 0:03:46]} Qxc2 {[%emt 0:04:39]} 31. Rxc2 {[%emt 0:00:09]} Rd3 {[%emt 0:00:19]} 0-1

[Event "12th Senioren-Cup Tegernsee 2024"]
[Site "Rottach-Egern"]
[Date "2024.04.08"]
[Round "3.7"]
[White "Luciani, Carlo"]
[Black "Schulz, Michael"]
[Result "0-1"]
[ECO "B38"]
[WhiteElo "2159"]
[BlackElo "2144"]
[Annotator "RC"]
[PlyCount "108"]
[EventDate "2024.04.02"]
[EventType "swiss"]
[EventCountry "GER"]
[SourceTitle "playchess.com"]
[Source "ChessBase"]
[SourceQuality "1"]
[TimeControl "7800+30"]

1. e4 {[%emt 0:00:04]} c5 {[%emt 0:00:14]} 2. Nf3 {[%emt 0:00:11]} g6 {[%emt 0:00:05]} 3. d4 {[%emt 0:00:49]} cxd4 {[%emt 0:00:05]} 4. Nxd4 {[%emt 0:00:18]} Nf6 {[%emt 0:01:15]} 5. f3 {[%emt 0:00:43]} Nc6 {[%emt 0:01:18]} 6. c4 {[%emt 0:00:27]} d6 {[%emt 0:00:27]} 7. Nc3 {[%emt 0:00:16]} Bg7 {[%emt 0:00:20]} 8. Be3 {[%emt 0:01:38]} O-O {[%emt 0:01:59]} 9. Qd2 {[%emt 0:01:28]} Nxd4 {[%emt 0:00:24]} 10. Bxd4 {[%emt 2:09:36]} a5 {[%emt 0:01:05]} 11. g4 {[%emt 0:00:00]} Be6 {[%emt 0:04:10]} 12. h4 {[%emt 0:00:00]} a4 {[%emt 0:11:22]} 13. h5 {[%emt 0:00:00]} Qa5 {[%emt 0:02:06]} 14. h6 {[%emt 0:00:00]} Bh8 {[%emt 1:52:40]} 15. g5 {[%emt 0:00:00]} Nd7 {[%emt 0:00:00]} 16. Bxh8 {[%emt 0:00:00]} Kxh8 {[%emt 0:00:00]} 17. Nd5 {[%emt 0:00:00]} Bxd5 {[%emt 0:00:00]} 18. Qxa5 {[%emt 0:00:00]} Rxa5 {[%emt 0:00:00]} 19. cxd5 {[%emt 0:00:00]} Rc5 {[%emt 0:00:00]} 20. Rd1 {[%emt 0:00:00]} f6 {[%emt 0:00:00]} 21. gxf6 {[%emt 0:00:00]} Rxf6 {[%emt 0:00:00]} 22. Be2 {[%emt 0:00:00]} Ne5 {[%emt 0:00:00]} 23. Rh3 {[%emt 0:00:00]} g5 {[%emt 0:00:00]} 24. Kd2 {[%emt 0:00:00]} Kg8 {[%emt 0:00:00]} 25. Rg1 {[%emt 0:00:00]} Nf7 {[%emt 0:00:00]} 26. Bd1 {[%emt 0:00:00]} b5 {[%emt 0:00:00]} 27. b4 {[%emt 0:00:00]} axb3 {[%emt 0:00:00]} 28. axb3 {[%emt 0:00:00]} b4 {[%emt 0:00:00]} 29. Bc2 {[%emt 0:00:00]} Rc3 {[%emt 0:00:00]} 30. Ra1 {[%emt 0:00:00]} Rxh6 {[%emt 0:00:00]} 31. Rxh6 {[%emt 0:00:00]} Nxh6 {[%emt 0:00:00]} 32. Ra7 {[%emt 0:00:00]} Kf8 {[%emt 0:00:00]} 33. Rb7 {[%emt 0:00:00]} Rxf3 {[%emt 0:00:00]} 34. Rxb4 {[%emt 0:00:00]} g4 {[%emt 0:00:00]} 35. Ke2 {[%emt 0:00:00]} Rf6 {[%emt 0:00:00]} 36. Rb8+ {[%emt 0:00:00]} Kg7 {[%emt 0:00:00]} 37. Ra8 {[%emt 0:00:00]} g3 {[%emt 0:00:00]} 38. Ra1 {[%emt 0:00:00]} Rf2+ {[%emt 0:00:00]} 39. Kd3 {[%emt 0:00:00]} g2 {[%emt 0:00:00]} 40. Rg1 {[%emt 0:00:00]} Kf6 {[%emt 0:00:00]} 41. Kc3 {[%emt 0:00:00]} Ng4 {[%emt 0:00:00]} 42. e5+ {[%emt 0:00:00]} Nxe5 {[%emt 0:00:00]} 43. Be4 {[%emt 0:00:00]} Nf3 {[%emt 0:00:00]} 44. Bxf3 {[%emt 0:00:00]} Rxf3+ {[%emt 0:00:00]} 45. Kc4 {[%emt 0:00:00]} Rf2 {[%emt 0:00:00]} 46. b4 {[%emt 0:00:00]} h5 {[%emt 0:00:00]} 47. Kd3 {[%emt 0:00:00]} h4 {[%emt 0:00:00]} 48. Ke3 {[%emt 0:00:00]} Rb2 {[%emt 0:00:00]} 49. Kf3 {[%emt 0:00:00]} h3 {[%emt 0:00:00]} 50. Kg3 {[%emt 0:00:00]} Rb3+ {[%emt 0:00:00]} 51. Kh2 {[%emt 0:00:00]} Ke5 {[%emt 0:00:00]} 52. Rd1 {[%emt 0:00:00]} Rf3 {[%emt 0:00:00]} 53. Re1+ {[%emt 0:01:54]} Kxd5 {[%emt 0:00:00]} 54. Rxe7 {[%emt 0:00:10]} Rf1 {[%emt 0:00:00]} 0-1

[Event "12th Senioren-Cup Tegernsee 2024"]
[Site "Rottach-Egern"]
[Date "2024.04.08"]
[Round "3.8"]
[White "Strobel, Walter"]
[Black "Schoetzig, Detlef"]
[Result "1/2-1/2"]
[ECO "B01"]
[WhiteElo "2147"]
[BlackElo "2068"]
[Annotator "RC"]
[PlyCount "22"]
[EventDate "2024.04.02"]
[EventType "swiss"]
[EventCountry "GER"]
[SourceTitle "playchess.com"]
[Source "ChessBase"]
[SourceQuality "1"]
[TimeControl "7800+30"]

1. e4 {[%emt 0:00:06]} d5 {[%emt 0:00:22]} 2. exd5 {[%emt 0:00:09]} Nf6 {[%emt 0:00:24]} 3. Nf3 {[%emt 0:00:30]} Qxd5 {[%emt 0:01:35]} 4. d4 {[%emt 0:00:18]} Bg4 {[%emt 0:00:48]} 5. Be2 {[%emt 0:00:06]} Nc6 {[%emt 0:01:31]} 6. c4 {[%emt 0:01:35]} Qh5 {[%emt 0:03:16]} 7. Be3 {[%emt 0:02:03]} O-O-O {[%emt 0:02:19]} 8. Nbd2 {[%emt 0:01:15]} e6 {[%emt 0:02:14]} 9. Qa4 {[%emt 0:02:47]} Bb4 {[%emt 0:06:44]} 10. O-O-O {[%emt 0:02:21]} Qa5 {[%emt 0:05:24]} 11. Qxa5 {[%emt 0:03:27]} Nxa5 {[%emt 0:03:37]} 1/2-1/2